[Event "30th NATO Chess-ch 2019"]
[Site "Berlin"]
[Date "2019.09.14"]
[Round "1.17"]
[White "Bublys, Vaidotas"]
[Black "Mouroutis, Konstantinos"]
[Result "0-1"]
[ECO "B10"]
[WhiteElo "1863"]
[BlackElo "2181"]
[Annotator "NA"]
[PlyCount "136"]
[EventDate "2019.09.16"]
[EventType "swiss"]
[EventCountry "GER"]
[SourceTitle "playchess.com"]
[Source "ChessBase"]
[SourceQuality "1"]
[TimeControl "40/7200:1800"]

1. c4 {[%emt 1:59:47]} c6 {[%emt 1:59:47]} 2. e4 {[%emt 1:59:44]} d5 {[%emt 1:59:15]} 3. exd5 {[%emt 1:58:28]} cxd5 {[%emt 1:59:07]} 4. cxd5 {[%emt 1:58:16]} Qxd5 {[%emt 1:58:02]} 5. Nc3 {[%emt 1:58:02]} Qa5 {[%emt 1:56:14]} 6. Qb3 {[%emt 1:56:14]} Nc6 {[%emt 1:54:50]} 7. Bc4 {[%emt 1:52:38]} e6 {[%emt 1:52:38]} 8. Nf3 {[%emt 1:54:48]} Nf6 {[%emt 1:51:12]} 9. d4 {[%emt 1:48:34]} a6 {[%emt 1:45:53]} 10. Bd2 {[%emt 1:45:59]} Qc7 {[%emt 1:44:01]} 11. Qc2 {[%emt 1:39:21]} Nxd4 {[%emt 1:37:27]} 12. Nxd4 {[%emt 1:32:41]} Qxc4 {[%emt 1:36:43]} 13. Qa4+ {[%emt 1:31:49]} Qxa4 {[%emt 1:36:27]} 14. Nxa4 {[%emt 1:36:27]} Nd5 {[%emt 1:34:08]} 15. Nc3 {[%emt 1:34:08]} Nb6 {[%emt 1:28:05]} 16. O-O {[%emt 1:25:48]} Nc4 {[%emt 1:23:26]} 17. Bc1 {[%emt 1:24:01]} Bc5 {[%emt 1:24:01]} 18. Nc2 {[%emt 1:23:14]} b5 {[%emt 1:16:18]} 19. b3 {[%emt 1:22:41]} Ne5 {[%emt 1:22:41]} 20. Ne4 {[%emt 1:20:29]} Be7 {[%emt 1:20:29]} 21. Rd1 {[%emt 1:06:15]} O-O {[%emt 1:19:20]} 22. Bb2 {[%emt 1:18:05]} Ng6 {[%emt 1:00:47]} 23. Nd6 {[%emt 1:17:19]} Rd8 {[%emt 1:17:19]} 24. Nxc8 {[%emt 1:16:21]} Raxc8 {[%emt 0:59:53]} 25. Ne3 {[%emt 0:59:53]} Nf4 {[%emt 1:13:03]} 26. Rxd8+ {[%emt 1:01:48]} Rxd8 {[%emt 1:01:48]} 27. Rd1 {[%emt 1:01:37]} Nd3 {[%emt 0:53:43]} 28. Bc3 {[%emt 0:53:43]} b4 {[%emt 0:51:40]} 29. Ba1 {[%emt 0:59:31]} Bc5 {[%emt 0:50:25]} 30. Kf1 {[%emt 0:56:43]} Kf8 {[%emt 0:49:51]} 31. g3 {[%emt 0:49:51]} Be7 {[%emt 0:56:29]} 32. Ke2 {[%emt 0:55:39]} Nc5 {[%emt 0:35:30]} 33. Rxd8+ Bxd8 {[%emt 0:35:28]} 34. Nc4 {[%emt 0:54:29]} f6 {[%emt 0:54:29]} 35. Ke3 {[%emt 0:34:31]} e5 {[%emt 0:52:58]} 36. f3 {[%emt 0:52:09]} Ke7 {[%emt 0:32:55]} 37. f4 {[%emt 0:32:55]} exf4+ {[%emt 0:32:01]} 38. gxf4 {[%emt 0:46:28]} Bc7 {[%emt 0:31:05]} 39. h3 {[%emt 0:43:46]} Ne6 {[%emt 0:28:24]} 40. f5 {[%emt 0:42:58]} Nf4 {[%emt 0:42:58]} 41. Bd4 {[%emt 0:41:01]} Nxh3 {[%emt 0:13:53]} 42. Bc5+ {[%emt 0:40:44]} Kd7 {[%emt 0:40:44]} 43. Bxb4 {[%emt 0:39:53]} Nf4 {[%emt 0:39:53]} 44. Ke4 {[%emt 0:39:09]} Ne2 {[%emt 0:39:09]} 45. Be1 {[%emt 0:32:19]} Nc1 {[%emt 0:06:59]} 46. Ne3 {[%emt 0:32:07]} Nxa2 {[%emt 0:32:07]} 47. Bd2 {[%emt 0:31:40]} g5 {[%emt 0:03:01]} 48. Nd5 {[%emt 0:28:55]} Bd8 {[%emt 0:28:55]} 49. Be3 {[%emt 0:28:28]} Ke8 {[%emt 0:28:28]} 50. Bd4 {[%emt 0:00:03]} Kf7 {[%emt 0:29:50]} 51. Bb2 {[%emt 0:54:19]} h5 {[%emt 0:54:19]} 52. Kf3 {[%emt 0:53:44]} Be7 {[%emt 0:53:44]} 53. Nc7 {[%emt 0:52:44]} Nb4 {[%emt 0:24:54]} 54. Ba3 {[%emt 0:52:17]} a5 {[%emt 0:52:17]} 55. Ne6 {[%emt 0:51:49]} Bd6 {[%emt 0:51:49]} 56. Bb2 {[%emt 0:51:09]} Nc6 {[%emt 0:19:01]} 57. Bc3 {[%emt 0:19:01]} Be5 {[%emt 0:18:00]} 58. Bd2 {[%emt 0:48:24]} Bd6 {[%emt 0:14:19]} 59. Be1 {[%emt 0:47:22]} Bb4 {[%emt 0:13:53]} 60. Bf2 {[%emt 0:47:01]} Ne7 {[%emt 0:13:32]} 61. Ke4 {[%emt 0:45:39]} Nc8 {[%emt 0:45:39]} 62. Bg3 {[%emt 0:43:10]} h4 {[%emt 0:12:40]} 63. Bc7 {[%emt 0:42:05]} Nd6+ {[%emt 0:42:05]} 64. Bxd6 {[%emt 0:09:31]} Bxd6 {[%emt 0:09:31]} 65. Nd8+ {[%emt 0:40:37]} Kg7 {[%emt 0:40:37]} 66. Ne6+ {[%emt 0:08:57]} Kh6 {[%emt 0:08:47]} 67. Kf3 {[%emt 0:39:49]} h3 {[%emt 0:08:36]} 68. Nd4 {[%emt 0:39:21]} g4+ {[%emt 0:08:23]} 0-1

[Event "30th NATO Chess-ch 2019"]
[Site "Berlin"]
[Date "2019.09.14"]
[Round "1.18"]
[White "Watters, Chase"]
[Black "Korge, Kersti"]
[Result "1-0"]
[ECO "A48"]
[WhiteElo "2179"]
[BlackElo "1842"]
[Annotator "NA"]
[PlyCount "81"]
[EventDate "2019.09.16"]
[EventType "swiss"]
[EventCountry "GER"]
[SourceTitle "playchess.com"]
[Source "ChessBase"]
[SourceQuality "1"]
[TimeControl "40/7200:1800"]

1. d4 {[%emt 1:59:48]} Nf6 {[%emt 1:59:48]} 2. Bf4 {[%emt 1:58:55]} d6 {[%emt 1:58:47]} 3. Nf3 {[%emt 1:57:06]} g6 {[%emt 1:57:06]} 4. c4 {[%emt 1:55:00]} c5 {[%emt 1:57:30]} 5. e3 {[%emt 1:54:03]} Bg7 {[%emt 1:57:08]} 6. h3 {[%emt 1:57:08]} Qa5+ {[%emt 1:53:19]} 7. Nc3 {[%emt 1:49:13]} Ne4 {[%emt 1:49:13]} 8. Bd3 Nxc3 {[%emt 1:39:02]} 9. Qd2 {[%emt 1:49:56]} Nc6 {[%emt 1:48:25]} 10. Qxc3 {[%emt 1:30:03]} Qxc3+ {[%emt 1:48:00]} 11. bxc3 {[%emt 1:48:00]} e5 {[%emt 1:30:00]} 12. Bg3 {[%emt 1:45:31]} f5 {[%emt 1:43:16]} 13. Bc2 {[%emt 1:43:16]} O-O {[%emt 1:42:28]} 14. O-O-O {[%emt 1:20:22]} b6 {[%emt 1:20:22]} 15. dxc5 {[%emt 1:09:44]} dxc5 {[%emt 1:09:44]} 16. Ba4 {[%emt 1:33:14]} Bb7 {[%emt 1:09:12]} 17. Rd7 {[%emt 1:31:56]} Na5 {[%emt 1:31:56]} 18. Rxb7 {[%emt 0:55:11]} Nxb7 {[%emt 1:31:36]} 19. Bc6 {[%emt 0:54:56]} Rab8 {[%emt 0:54:56]} 20. Bd5+ {[%emt 0:53:54]} Kh8 {[%emt 1:31:06]} 21. Nxe5 {[%emt 0:53:32]} Nd6 {[%emt 1:27:28]} 22. Nxg6+ {[%emt 0:46:57]} hxg6 {[%emt 1:27:12]} 23. Bxd6 {[%emt 0:46:52]} Bxc3 {[%emt 0:46:18]} 24. Kc2 {[%emt 0:44:52]} Bf6 {[%emt 0:44:52]} 25. g4 {[%emt 0:40:55]} fxg4 {[%emt 1:24:08]} 26. hxg4+ {[%emt 0:40:23]} Kg7 {[%emt 1:24:04]} 27. f4 {[%emt 0:38:29]} Rbe8 {[%emt 0:38:29]} 28. g5 {[%emt 0:36:44]} Bd8 {[%emt 1:18:21]} 29. Bxf8+ {[%emt 0:34:58]} Kxf8 {[%emt 1:18:12]} 30. Rh8+ {[%emt 0:33:01]} Ke7 {[%emt 0:33:01]} 31. Rh7+ {[%emt 0:32:48]} Kd6 {[%emt 0:32:48]} 32. e4 {[%emt 1:17:20]} Re7 {[%emt 1:13:47]} 33. e5+ {[%emt 0:31:26]} Kd7 {[%emt 1:13:08]} 34. Bf7 {[%emt 1:13:08]} a6 {[%emt 0:29:17]} 35. a4 {[%emt 0:28:38]} Kc6 {[%emt 1:05:37]} 36. Bxg6 {[%emt 0:28:31]} Rxh7 {[%emt 0:28:31]} 37. Bxh7 {[%emt 1:05:27]} Kd7 {[%emt 1:05:09]} 38. g6 {[%emt 0:26:51]} Ke8 {[%emt 0:26:51]} 39. g7 {[%emt 0:26:46]} Kf7 {[%emt 1:04:45]} 40. Kd3 Ke8 41. Ke4 {cxd4 Bd3} 1-0

[Event "30th NATO Chess-ch 2019"]
[Site "Berlin"]
[Date "2019.09.14"]
[Round "1.19"]
[White "Cappon, Kaan"]
[Black "Pavlidou, Ekaterini"]
[Result "0-1"]
[ECO "B32"]
[WhiteElo "1841"]
[BlackElo "2178"]
[Annotator "NA"]
[PlyCount "38"]
[EventDate "2019.09.16"]
[EventType "swiss"]
[EventCountry "GER"]
[SourceTitle "playchess.com"]
[Source "ChessBase"]
[SourceQuality "1"]
[TimeControl "40/7200:1800"]

1. e4 {[%emt 1:59:52]} c5 {[%emt 1:59:52]} 2. Nf3 {[%emt 1:59:29]} Nc6 {[%emt 1:59:29]} 3. d4 {[%emt 1:59:19]} cxd4 {[%emt 1:59:09]} 4. Nxd4 {[%emt 1:59:11]} e5 {[%emt 1:58:58]} 5. Nb5 {[%emt 1:56:33]} d6 {[%emt 1:56:33]} 6. c4 {[%emt 1:54:19]} g6 {[%emt 1:54:19]} 7. N1c3 {[%emt 1:53:24]} a6 {[%emt 1:53:24]} 8. Na3 {[%emt 1:53:15]} Bg7 {[%emt 1:54:58]} 9. Be2 {[%emt 1:51:48]} Nge7 {[%emt 1:51:48]} 10. O-O {[%emt 1:53:05]} O-O {[%emt 1:50:54]} 11. Bg5 {[%emt 1:51:46]} h6 {[%emt 1:50:21]} 12. Be3 {[%emt 1:48:17]} f5 {[%emt 1:48:17]} 13. f3 {[%emt 1:47:38]} f4 {[%emt 1:47:38]} 14. Bf2 {[%emt 1:40:54]} Nd4 {[%emt 1:47:14]} 15. Qd2 {[%emt 1:36:03]} Be6 {[%emt 1:29:50]} 16. Rfc1 {[%emt 1:18:22]} Rc8 {[%emt 1:20:52]} 17. b3 {[%emt 1:01:37]} Qa5 {[%emt 1:15:20]} 18. Qb2 {[%emt 1:15:20]} Nec6 {[%emt 0:58:17]} 19. Nc2 {[%emt 0:47:10]} Qxc3 {[%emt 0:46:03]} 0-1

[Event "30th NATO Chess-ch 2019"]
[Site "Berlin"]
[Date "2019.09.14"]
[Round "1.20"]
[White "Kedzierski, Slawomir"]
[Black "Christen, Peter"]
[Result "1-0"]
[ECO "B10"]
[WhiteElo "2163"]
[BlackElo "2153"]
[Annotator "NA"]
[PlyCount "103"]
[EventDate "2019.09.16"]
[EventType "swiss"]
[EventCountry "GER"]
[SourceTitle "playchess.com"]
[Source "ChessBase"]
[SourceQuality "1"]
[TimeControl "40/7200:1800"]

1. e4 {[%emt 2:00:00]} c6 {[%emt 1:59:50]} 2. d3 {[%emt 1:59:50]} d5 {[%emt 1:59:12]} 3. Nd2 {[%emt 1:59:36]} Nf6 {[%emt 1:59:36]} 4. Ngf3 {[%emt 1:56:24]} Bg4 {[%emt 1:54:16]} 5. h3 {[%emt 1:58:20]} Bxf3 {[%emt 1:58:20]} 6. Qxf3 {[%emt 1:51:30]} Nbd7 {[%emt 1:58:06]} 7. g3 {[%emt 1:54:51]} e6 {[%emt 1:45:44]} 8. Bg2 {[%emt 1:53:06]} Bd6 {[%emt 1:41:25]} 9. O-O {[%emt 1:52:26]} O-O {[%emt 1:52:26]} 10. Qe2 {[%emt 1:51:27]} Qb6 {[%emt 1:51:27]} 11. Kh2 {[%emt 1:35:53]} dxe4 {[%emt 1:46:22]} 12. dxe4 {[%emt 1:16:59]} e5 {[%emt 1:13:27]} 13. Nc4 {[%emt 1:43:48]} Qa6 {[%emt 1:09:27]} 14. Rd1 {[%emt 1:09:27]} Nb6 {[%emt 0:56:27]} 15. Rxd6 {[%emt 0:56:27]} Qxc4 {[%emt 0:55:30]} 16. Rd3 {[%emt 1:24:39]} Rad8 {[%emt 0:53:48]} 17. b3 {[%emt 0:53:48]} Qa6 {[%emt 0:45:01]} 18. c4 {[%emt 0:45:01]} Rxd3 {[%emt 0:43:03]} 19. Qxd3 {[%emt 1:22:09]} Nbd7 {[%emt 1:22:09]} 20. Qd6 {[%emt 0:40:43]} Qb6 {[%emt 0:34:15]} 21. Be3 {[%emt 0:34:15]} c5 {[%emt 0:30:36]} 22. Qxb6 {[%emt 0:30:36]} axb6 {[%emt 0:30:21]} 23. Rd1 {[%emt 1:14:24]} h6 {[%emt 1:14:24]} 24. g4 {[%emt 0:26:52]} g5 {[%emt 1:09:55]} 25. Kg3 {[%emt 1:09:31]} Rd8 {[%emt 1:09:31]} 26. h4 {[%emt 0:19:40]} Nh7 {[%emt 1:08:51]} 27. b4 {[%emt 1:06:52]} Kf8 {[%emt 0:14:31]} 28. bxc5 {[%emt 1:06:44]} bxc5 {[%emt 0:14:21]} 29. Bxc5+ {[%emt 1:05:38]} Ke8 {[%emt 0:14:18]} 30. Bb4 {[%emt 1:05:01]} Nhf8 {[%emt 0:09:50]} 31. Bf1 {[%emt 0:09:50]} b6 {[%emt 0:08:06]} 32. hxg5 {[%emt 0:55:37]} hxg5 {[%emt 0:55:37]} 33. Be2 {[%emt 0:08:03]} Ne6 {[%emt 0:05:52]} 34. Rd6 {[%emt 0:05:52]} Nec5 {[%emt 0:05:21]} 35. f3 {[%emt 0:50:55]} Rc8 {[%emt 0:03:33]} 36. Kf2 {[%emt 0:41:42]} Ke7 {[%emt 0:03:21]} 37. Rh6 {[%emt 0:03:21]} Nf6 {[%emt 0:02:15]} 38. Bd2 {[%emt 0:02:15]} Rg8 {[%emt 0:01:21]} 39. Ke1 {[%emt 0:37:40]} Ne6 {[%emt 0:00:33]} 40. Bb4+ {[%emt 0:00:33]} Nc5 {[%emt 0:00:32]} 41. Kd2 {[%emt 0:00:32]} Rc8 {[%emt 0:27:00]} 42. Kc1 {[%emt 0:27:00]} Nfd7 {[%emt 1:04:10]} 43. Kb2 {[%emt 0:25:51]} f6 {[%emt 1:03:28]} 44. Rh7+ {[%emt 0:24:59]} Kd8 {[%emt 1:02:14]} 45. Kc3 {[%emt 0:58:48]} Kc7 {[%emt 0:20:26]} 46. Bd1 {[%emt 0:20:26]} Kc6 {[%emt 0:57:55]} 47. Rh6 {[%emt 0:18:40]} b5 {[%emt 0:17:23]} 48. Be2 {[%emt 0:17:23]} bxc4 {[%emt 0:53:22]} 49. Bxc4 {[%emt 0:52:20]} Kb6 {[%emt 0:52:20]} 50. Bxc5+ {[%emt 0:12:52]} Rxc5 {[%emt 0:11:51]} 51. Kb4 {[%emt 0:47:51]} Rc6 {[%emt 0:47:51]} 52. Bb5 {[%emt 0:47:09]} 1-0

[Event "30th NATO Chess-ch 2019"]
[Site "Berlin"]
[Date "2019.09.14"]
[Round "1.21"]
[White "Crapulli, Giuseppe"]
[Black "Bohn, Ulrich"]
[Result "0-1"]
[ECO "B07"]
[WhiteElo "1836"]
[BlackElo "2157"]
[Annotator "NA"]
[PlyCount "62"]
[EventDate "2019.09.16"]
[EventType "swiss"]
[EventCountry "GER"]
[SourceTitle "playchess.com"]
[Source "ChessBase"]
[SourceQuality "1"]
[TimeControl "40/7200:1800"]

1. e4 {[%emt 2:00:00]} g6 {[%emt 1:59:52]} 2. d4 {[%emt 1:59:52]} Bg7 {[%emt 1:59:52]} 3. Nc3 {[%emt 1:59:30]} d6 {[%emt 1:59:48]} 4. g3 {[%emt 1:59:24]} Nf6 {[%emt 1:59:37]} 5. Bg2 {[%emt 1:59:09]} O-O {[%emt 1:58:55]} 6. Nge2 {[%emt 1:59:12]} Nbd7 {[%emt 1:57:36]} 7. O-O {[%emt 1:58:50]} c5 {[%emt 1:54:29]} 8. h3 {[%emt 1:54:29]} Rb8 {[%emt 1:51:27]} 9. a4 {[%emt 1:54:31]} b6 {[%emt 1:50:31]} 10. Be3 {[%emt 1:50:56]} a6 {[%emt 1:47:12]} 11. Qd2 {[%emt 1:47:28]} cxd4 {[%emt 1:28:38]} 12. Nxd4 {[%emt 1:28:38]} Ne5 {[%emt 1:08:35]} 13. b3 {[%emt 1:41:36]} Qc7 {[%emt 1:41:36]} 14. f4 {[%emt 0:58:21]} Ned7 {[%emt 0:58:21]} 15. e5 {[%emt 1:25:48]} dxe5 {[%emt 0:53:05]} 16. Nc6 {[%emt 1:25:46]} exf4 {[%emt 1:25:46]} 17. Bxf4 {[%emt 0:49:40]} e5 {[%emt 0:49:28]} 18. Bh6 {[%emt 0:49:28]} Rb7 {[%emt 1:15:43]} 19. Ne7+ {[%emt 0:36:06]} Kh8 {[%emt 0:36:01]} 20. Bxg7+ {[%emt 0:36:01]} Kxg7 {[%emt 0:35:57]} 21. Nxc8 {[%emt 0:35:57]} Qc5+ {[%emt 0:30:19]} 22. Kh2 {[%emt 0:30:19]} Rc7 {[%emt 1:04:30]} 23. Nxb6 {[%emt 0:29:58]} Qxc3 {[%emt 0:25:56]} 24. Qxc3 {[%emt 0:55:24]} Rxc3 {[%emt 0:25:52]} 25. Nxd7 {[%emt 0:54:35]} Nxd7 {[%emt 0:25:48]} 26. Rf2 {[%emt 0:53:35]} f5 {[%emt 0:22:13]} 27. b4 {[%emt 0:51:33]} Rb8 {[%emt 0:19:37]} 28. Bf1 {[%emt 0:49:36]} Rxb4 {[%emt 0:18:58]} 29. Bxa6 {[%emt 0:49:24]} Nc5 {[%emt 0:18:33]} 30. Bf1 {[%emt 0:48:28]} Rxa4 {[%emt 0:17:39]} 31. Rxa4 {[%emt 0:47:51]} Nxa4 {[%emt 0:15:13]} 0-1

[Event "30th NATO Chess-ch 2019"]
[Site "Berlin"]
[Date "2019.09.14"]
[Round "1.22"]
[White "Tommasini, Enzo"]
[Black "Slaidins, Janis"]
[Result "1-0"]
[ECO "E05"]
[WhiteElo "2147"]
[BlackElo "1834"]
[Annotator "NA"]
[PlyCount "70"]
[EventDate "2019.09.16"]
[EventType "swiss"]
[EventCountry "GER"]
[SourceTitle "playchess.com"]
[Source "ChessBase"]
[SourceQuality "1"]
[TimeControl "40/7200:1800"]

1. Nf3 {[%emt 1:59:54]} d5 {[%emt 1:59:54]} 2. d4 {[%emt 1:59:34]} e6 {[%emt 1:59:29]} 3. g3 {[%emt 1:59:00]} Nf6 {[%emt 1:59:00]} 4. Bg2 {[%emt 1:58:49]} Be7 {[%emt 1:58:49]} 5. O-O {[%emt 1:56:34]} O-O {[%emt 1:56:27]} 6. c4 {[%emt 1:55:45]} dxc4 {[%emt 1:55:30]} 7. Qc2 {[%emt 1:55:05]} b5 {[%emt 1:55:05]} 8. a4 {[%emt 1:54:29]} Ba6 {[%emt 1:52:06]} 9. axb5 {[%emt 1:51:10]} Bxb5 {[%emt 1:51:10]} 10. Nc3 {[%emt 1:49:26]} Bc6 {[%emt 1:49:26]} 11. e4 {[%emt 1:45:57]} Nbd7 {[%emt 1:47:09]} 12. Rd1 {[%emt 1:43:10]} Nb6 {[%emt 1:43:10]} 13. Ne5 {[%emt 1:37:29]} Bb7 {[%emt 1:35:28]} 14. Be3 {[%emt 1:33:28]} Nfd7 {[%emt 1:33:28]} 15. Nb5 {[%emt 1:28:27]} a6 {[%emt 1:26:26]} 16. Na3 {[%emt 1:26:26]} Bxa3 {[%emt 1:26:06]} 17. Rxa3 {[%emt 1:27:16]} Nxe5 {[%emt 1:24:33]} 18. dxe5 {[%emt 1:24:33]} Qe7 {[%emt 1:21:36]} 19. Bf1 {[%emt 1:21:36]} Rfd8 {[%emt 1:19:21]} 20. Rxd8+ {[%emt 1:14:13]} Rxd8 {[%emt 1:16:28]} 21. Bxc4 {[%emt 1:16:28]} Qb4 {[%emt 1:13:22]} 22. Bd3 {[%emt 1:10:22]} Rd7 {[%emt 1:10:22]} 23. Kf1 {[%emt 1:08:34]} h6 {[%emt 0:40:19]} 24. Bc5 {[%emt 1:08:16]} Qd2 {[%emt 0:35:51]} 25. Qxd2 {[%emt 0:35:51]} Nc4 {[%emt 0:35:11]} 26. Qc2 {[%emt 0:35:11]} Nxe5 {[%emt 0:34:17]} 27. Bxa6 {[%emt 1:06:26]} Bc6 {[%emt 0:33:14]} 28. Be2 {[%emt 1:04:54]} f6 {[%emt 0:31:28]} 29. f4 {[%emt 0:31:28]} Nf7 {[%emt 1:04:38]} 30. Bc4 {[%emt 0:30:32]} e5 {[%emt 1:04:24]} 31. fxe5 {[%emt 1:04:12]} fxe5 {[%emt 0:30:04]} 32. Rf3 {[%emt 0:30:04]} h5 33. Qd1 Z0 34. Rxf7 Z0 35. Be7 Rd2 1-0

[Event "30th NATO Chess-ch 2019"]
[Site "Berlin"]
[Date "2019.09.14"]
[Round "1.23"]
[White "Allmann, Lauri"]
[Black "Graczyk, Damian"]
[Result "0-1"]
[ECO "A25"]
[WhiteElo "1827"]
[BlackElo "2133"]
[Annotator "NA"]
[PlyCount "69"]
[EventDate "2019.09.16"]
[EventType "swiss"]
[EventCountry "GER"]
[SourceTitle "playchess.com"]
[Source "ChessBase"]
[SourceQuality "1"]
[TimeControl "40/7200:1800"]

1. g3 {[%emt 1:59:34]} e5 {[%emt 1:59:34]} 2. Bg2 {[%emt 1:58:11]} Nc6 {[%emt 1:58:20]} 3. c4 {[%emt 1:58:20]} f5 {[%emt 1:58:09]} 4. Nc3 {[%emt 1:57:16]} Nf6 {[%emt 1:57:16]} 5. a3 {[%emt 1:56:50]} g6 {[%emt 1:56:20]} 6. e3 {[%emt 1:55:43]} Bg7 {[%emt 1:56:07]} 7. Nge2 {[%emt 1:56:07]} O-O {[%emt 1:55:53]} 8. Rb1 {[%emt 1:51:27]} a5 {[%emt 1:53:49]} 9. b3 {[%emt 1:48:21]} d6 {[%emt 1:48:21]} 10. Nd5 {[%emt 1:45:11]} Ne7 {[%emt 1:52:24]} 11. Nec3 {[%emt 1:43:33]} c6 {[%emt 1:43:33]} 12. Nxf6+ {[%emt 1:40:40]} Rxf6 {[%emt 1:40:40]} 13. Bb2 {[%emt 1:38:12]} g5 {[%emt 1:49:32]} 14. h4 {[%emt 1:49:32]} gxh4 {[%emt 1:33:16]} 15. Rxh4 {[%emt 1:31:05]} Ng6 {[%emt 1:41:12]} 16. Rh2 {[%emt 1:28:13]} Be6 {[%emt 1:39:55]} 17. d3 {[%emt 1:14:39]} d5 {[%emt 1:37:19]} 18. cxd5 {[%emt 1:37:19]} cxd5 {[%emt 1:37:07]} 19. Qh5 {[%emt 1:37:07]} Nf8 {[%emt 1:06:38]} 20. Qf3 {[%emt 0:59:40]} e4 {[%emt 0:59:40]} 21. Qd1 {[%emt 0:54:47]} Rf7 {[%emt 1:05:38]} 22. Nb5 {[%emt 0:51:48]} Qe7 {[%emt 0:51:48]} 23. a4 {[%emt 0:45:28]} Bxb2 {[%emt 0:56:21]} 24. Rxb2 {[%emt 0:43:19]} Ng6 {[%emt 0:43:19]} 25. d4 {[%emt 0:41:08]} Rc8 {[%emt 0:47:03]} 26. Qd2 {[%emt 0:37:50]} b6 {[%emt 0:45:58]} 27. Bf1 {[%emt 0:32:16]} Rff8 {[%emt 0:42:28]} 28. Rc2 {[%emt 0:27:23]} Rxc2 {[%emt 0:42:18]} 29. Qxc2 {[%emt 0:27:15]} Rc8 {[%emt 0:42:08]} 30. Qd2 {[%emt 0:26:06]} Bd7 {[%emt 0:26:06]} 31. Nc3 {[%emt 0:21:29]} Qa3 {[%emt 0:21:29]} 32. Nxd5 {[%emt 0:10:29]} Qxb3 {[%emt 0:35:54]} 33. Nf6+ {[%emt 0:06:50]} Kg7 {[%emt 0:35:03]} 34. Nh5+ {[%emt 0:35:03]} Kf7 {[%emt 0:04:20]} 35. Be2 {[%emt 0:26:56]} 0-1

[Event "30th NATO Chess-ch 2019"]
[Site "Berlin"]
[Date "2019.09.14"]
[Round "1.24"]
[White "Kersic, Matej"]
[Black "Van den Heuvel, Tonnie"]
[Result "1-0"]
[ECO "B00"]
[WhiteElo "2122"]
[BlackElo "1819"]
[Annotator "NA"]
[PlyCount "81"]
[EventDate "2019.09.16"]
[EventType "swiss"]
[EventCountry "GER"]
[SourceTitle "playchess.com"]
[Source "ChessBase"]
[SourceQuality "1"]
[TimeControl "40/7200:1800"]

1. e4 {[%emt 1:59:54]} b6 {[%emt 1:59:53]} 2. d4 {[%emt 1:59:34]} Bb7 {[%emt 1:59:41]} 3. Bd3 {[%emt 1:59:41]} e6 {[%emt 1:59:10]} 4. Nf3 {[%emt 1:57:57]} Nf6 {[%emt 1:57:57]} 5. Nbd2 {[%emt 1:56:39]} c5 {[%emt 1:56:39]} 6. c3 {[%emt 1:57:05]} Nc6 {[%emt 1:56:25]} 7. O-O {[%emt 1:56:05]} cxd4 {[%emt 1:54:27]} 8. Nxd4 {[%emt 1:54:10]} Ne5 {[%emt 1:51:54]} 9. Bc2 {[%emt 1:51:54]} Ba6 {[%emt 1:53:46]} 10. Re1 {[%emt 1:48:42]} Nd3 {[%emt 1:43:24]} 11. Bxd3 {[%emt 1:43:24]} Bxd3 {[%emt 1:43:18]} 12. e5 {[%emt 1:43:18]} Nd5 {[%emt 1:41:56]} 13. Ne4 {[%emt 1:49:50]} Bxe4 {[%emt 1:49:50]} 14. Rxe4 {[%emt 1:40:10]} d6 {[%emt 1:35:48]} 15. c4 {[%emt 1:46:01]} Nc7 {[%emt 1:29:12]} 16. exd6 {[%emt 1:32:40]} Bxd6 {[%emt 1:32:40]} 17. b3 {[%emt 1:26:28]} O-O {[%emt 1:27:07]} 18. Bb2 {[%emt 1:26:21]} Ne8 {[%emt 1:26:21]} 19. Nf3 {[%emt 1:17:17]} Qc7 {[%emt 1:11:18]} 20. Rd4 {[%emt 1:13:28]} Bc5 {[%emt 1:10:43]} 21. Rd7 {[%emt 1:10:43]} Qf4 {[%emt 1:09:55]} 22. g3 {[%emt 0:58:16]} Qe4 {[%emt 1:05:20]} 23. Qd3 {[%emt 0:54:34]} Qxd3 {[%emt 1:02:36]} 24. Rxd3 {[%emt 0:54:31]} Nf6 {[%emt 1:02:11]} 25. Rad1 {[%emt 0:54:17]} Be7 {[%emt 0:54:17]} 26. Ne5 {[%emt 1:01:50]} Rac8 {[%emt 0:55:15]} 27. Kf1 {[%emt 0:55:15]} a5 {[%emt 0:51:15]} 28. Ke2 {[%emt 0:51:15]} Rfe8 {[%emt 0:43:44]} 29. f3 {[%emt 0:41:59]} Kf8 {[%emt 0:48:16]} 30. g4 {[%emt 0:40:30]} Red8 {[%emt 0:42:12]} 31. g5 {[%emt 0:39:39]} Nh5 {[%emt 0:39:30]} 32. Bc1 {[%emt 0:39:30]} Rxd3 33. Rxd3 {[%emt 0:35:38]} b5 {[%emt 0:35:05]} 34. Be3 {[%emt 0:35:05]} f6 {[%emt 0:36:14]} 35. gxf6 {[%emt 0:29:23]} gxf6 {[%emt 0:29:23]} 36. Nd7+ {[%emt 0:33:42]} Ke8 {[%emt 0:29:10]} 37. cxb5 {[%emt 0:33:30]} Rc2+ {[%emt 0:33:22]} 38. Kd1 {[%emt 0:28:49]} Rc7 {[%emt 0:31:30]} 39. Nb6 {[%emt 0:31:30]} f5 {[%emt 0:27:50]} 40. a4 {[%emt 0:26:00]} Nf6 {[%emt 0:22:22]} 41. Bg5 {[%emt 0:22:22]} 1-0

[Event "30th NATO Chess-ch 2019"]
[Site "Berlin"]
[Date "2019.09.14"]
[Round "1.25"]
[White "Smit, Josip"]
[Black "Stentebjerg-Hansen, Per"]
[Result "0-1"]
[ECO "D03"]
[WhiteElo "2029"]
[BlackElo "2178"]
[Annotator "NA"]
[PlyCount "42"]
[EventDate "2019.09.16"]
[EventType "swiss"]
[EventCountry "GER"]
[SourceTitle "playchess.com"]
[Source "ChessBase"]
[SourceQuality "1"]
[TimeControl "40/7200:1800"]

1. d4 {[%emt 1:59:47]} d5 {[%emt 1:59:01]} 2. Nf3 {[%emt 1:59:28]} Nf6 {[%emt 1:58:28]} 3. Bg5 {[%emt 1:58:27]} Qd6 {[%emt 1:59:08]} 4. c3 {[%emt 1:58:22]} Ne4 {[%emt 1:56:05]} 5. Bh4 {[%emt 1:57:48]} Qh6 {[%emt 1:57:48]} 6. Nbd2 {[%emt 1:53:12]} g5 {[%emt 1:50:31]} 7. Bg3 {[%emt 1:50:31]} Nxg3 {[%emt 1:49:07]} 8. fxg3 {[%emt 1:49:54]} g4 {[%emt 1:49:54]} 9. Nh4 {[%emt 1:33:12]} e5 {[%emt 1:41:48]} 10. e4 {[%emt 1:41:48]} Be7 {[%emt 1:27:12]} 11. Nf5 {[%emt 1:14:59]} Bxf5 {[%emt 1:32:42]} 12. exf5 {[%emt 1:14:12]} exd4 {[%emt 1:26:46]} 13. cxd4 {[%emt 0:55:44]} Nc6 {[%emt 1:20:45]} 14. Bb5 {[%emt 1:20:45]} Rg8 {[%emt 1:13:24]} 15. Qe2 {[%emt 0:37:06]} O-O-O {[%emt 0:37:06]} 16. Bxc6 {[%emt 0:36:40]} Qxc6 {[%emt 1:10:48]} 17. O-O {[%emt 1:10:48]} Bg5 {[%emt 1:03:08]} 18. Qd3 {[%emt 0:26:45]} Qh6 {[%emt 0:56:45]} 19. Nb3 {[%emt 0:25:09]} Be3+ {[%emt 0:54:54]} 20. Kh1 {[%emt 0:25:05]} Rd6 {[%emt 0:53:30]} 21. Rae1 {[%emt 0:53:30]} Qxh2+ {[%emt 0:52:49] --- Rh8+} 0-1